Cogmind - Beta 15 @@@ ROGUE MODE // 2025.06.27 @ 06:51:32 Player: Crowsaint Result: Destroyed by MA-14B(R) with Subdweller Beam Cannon Performance ------------- Evolutions (0) 0 Regions Visited (3) 600 Robots Destroyed (24) 120 Value Destroyed (356) 356 Prototype IDs (0) 0 Alien Tech Used (0) 0 Bonus (60) 60 TOTAL SCORE: 1136 Bonus ------- Follower Combat Kills 60 Cogmind --------- Core Integrity 0/250 Matter 300/300 Energy 125/125 System Corruption 0% Temperature Cool (9) Movement Rolling (90) Location -10/Subcaves Parts ------- > --- POWER (1) -------- Light Ion Engine > --- PROPULSION (2) --- Armored Wheel Armored Wheel > --- UTILITY (2) ------ Medium Storage Unit ECM Suite > --- WEAPON (2) ------- Battle Rifle Ripper > --- INVENTORY (10) --- Subdweller Power Source Subdweller Monowheel Subdweller Monowheel Light EM Pulse Cannon Light EM Pulse Cannon Assault Rifle Rocket Launcher Rocket Launcher Mining Laser Peak State ------------ > --- POWER ------------ Light Nuclear Core > --- PROPULSION ------- Aluminum Leg Armored Wheel > --- UTILITY ---------- Medium Storage Unit ECM Suite > --- WEAPON ----------- Battle Rifle Ripper > --- INVENTORY -------- Armored Wheel Armored Wheel Light EM Pulse Cannon Light EM Pulse Cannon Assault Rifle Rocket Launcher Rocket Launcher Mining Laser [Rating: 15] Favorites ----------- Power Light Nuclear Core Engine Ion Engine Power Core Light Nuclear Core Propulsion Aluminum Leg Leg Aluminum Leg Wheel Armored Wheel Utility ECM Suite Device ECM Suite Storage Small Storage Unit Weapon Assault Rifle Energy Cannon Light EM Pulse Cannon Ballistic Gun Assault Rifle Launcher Rocket Launcher Special Weapon Mining Laser Slashing Weapon Ripper Build | -11 -10 -10 -10 ------- Run | Yrd Mat Min Sub Slots Evolved . | . . . . Power . | . . . . Propulsion . | . . . . Utility . | . . . . Weapon . | . . . . Parts Attached 25 | 8 3 9 5 Power 4 | 1 . 2 1 Engine 3 | 1 . 1 1 Core 1 | . . 1 . Reactor . | . . . . Propulsion 9 | 4 . 2 3 Treads . | . . . . Leg 4 | 2 . 2 . Wheel 5 | 2 . . 3 Hover . | . . . . Flight . | . . . . Utility 3 | 1 1 1 . Device 1 | . 1 . . Storage 2 | 1 . 1 . Processor . | . . . . Hackware . | . . . . Protection . | . . . . Artifact . | . . . . Weapon 9 | 2 2 4 1 Energy Gun . | . . . . Energy Cannon 2 | . 1 1 . Ballistic Gun 3 | 2 . . 1 Ballistic Cannon . | . . . . Launcher 2 | . . 2 . Special Weapon 1 | . 1 . . Impact Weapon . | . . . . Slashing Weapon 1 | . . 1 . Piercing Weapon . | . . . . Special Melee Weapon . | . . . . Unidentified Prototypes . | . . . . Parts Lost 4 | . . . 4 Power 1 | . . . 1 Propulsion 3 | . . . 3 Utility . | . . . . Weapon . | . . . . Highest Loss Streak 3 | . . . 3 To Critical Strikes . | . . . . Average Backups 7 | 2 7 8 8 Power . | . . . . Propulsion 2 | 1 3 3 2 Utility . | . . . . Weapon 4 | . 2 4 5 Tool/Special . | . . . . Unused Backups 10 | . 6 1 3 Power 2 | . 1 . 1 Propulsion 5 | . 2 1 2 Utility . | . . . . Weapon 3 | . 3 . . Tool/Special . | . . . . Average Slot Usage (%) 96 | . 96 100 94 Engine 6 | . 14 6 3 Core 7 | . . 7 9 Leg 20 | . 28 28 10 Wheel 5 | . . . 12 Device 13 | . 11 14 14 Storage 14 | . 14 14 14 Energy Cannon 1 | . . 5 . Ballistic Gun 16 | . 27 14 14 Slashing Weapon 9 | . . 7 14 Peak Build Rating 15 | 6 9 13 15 Average Rating 11 | 4 6 11 13 On Entrance 7 | . 6 9 13 Naked Turns . | . . . . Heaviest Build 22 | 14 18 22 22 Greatest Support 32 | 32 20 20 24 Greatest Overweight (x) 4 | 4 . 1 2 Average Overweight (x) . | . . . . Largest Inventory Capacity 10 | 8 8 10 10 Average Capacity 8 | 7 8 8 10 Most Carried 9 | 6 8 8 9 Average Carried 7 | 3 7 8 8 Final Capacity 10 | 8 8 10 10 Final Carried 9 | 6 8 8 9 Class Distribution -------------------- 100% | Mutant Dominant Class ---------------- Mutant | -10/Materials Mutant | -10/Mines Mutant | -10/Subcaves Resources | -11 -10 -10 -10 ----------- Run | Yrd Mat Min Sub Matter Collected 726 | 207 163 285 71 Remotely . | . . . . Salvage Created 695 | . 322 133 240 Parts 57 | . 25 16 16 Haulers Intercepted . | . . . . Recyclers Shooed 1 | . 1 . . Parts Field Recycled . | . . . . Retrieved Matter . | . . . . Parts Self-Destructed 9 | . . . 9 Prevented . | . . . . Kills | -11 -10 -10 -10 ------- Run | Yrd Mat Min Sub Combat Hostiles Destroyed 16 | . 7 5 4 Melee 3 | . . . 3 Guns 9 | . 7 1 1 Cannons 1 | . . 1 . AOE 3 | . . 3 . Classes Destroyed 7 | . 5 1 1 Worker 4 | . 3 1 . Builder 1 | . 1 . . Tunneler 1 | . . 1 . Recycler 2 | . 1 1 . Swarmer 10 | . 5 5 . Grunt 2 | . 2 . . Subdweller 4 | . . . 4 Best Kill Streak 6 | . 6 3 2 Combat Bots Only 3 | . 2 3 2 Max Kills in Single Turn 2 | . 2 2 1 Gunslinging . | . . . . Exploded 2 | . . 2 . Melee 1 | . . . 1 Uniques/NPCs Destroyed . | . . . . Combat | -11 -10 -10 -10 -------- Run | Yrd Mat Min Sub Hostile Shots Fired 115 | . 45 34 36 Missed 33 | . 13 14 6 Hits 82 | . 32 20 30 Projectile 82 | . 32 20 30 Critical Strikes 3 | . . . 3 Damage Taken 1162 | . 277 206 679 Core 261 | . 46 48 167 Absorbed by Shields . | . . . . Core Remaining (%) 100 | 100 . . . Volleys Fired 50 | . 29 9 12 Largest 2 | . 2 2 1 Hottest 76 | . 40 76 25 Shots Fired 86 | . 58 16 12 Gun 79 | . 58 9 12 Cannon 3 | . . 3 . Launcher 4 | . . 4 . Special . | . . . . Kinetic 79 | . 58 9 12 Thermal . | . . . . Explosive 4 | . . 4 . Electromagnetic 3 | . . 3 . Robot Hit Streak 5 | . 5 2 4 Robot Miss Streak 4 | . 4 4 1 Penetration Max . | . . . . Secondary Targets . | . . . . Shots Hit Robots 60 | . 30 9 21 Core Hits 33 | . 16 10 7 Critical Kills . | . . . . Critical Parts Destroyed . | . . . . Critical Strikes 1 | . . . 1 Sever 1 | . . . 1 Melee Attacks 17 | . . 5 12 Impact . | . . . . Slashing 17 | . . 5 12 Piercing . | . . . . Sneak Attacks 3 | . . 3 . Combat Hostiles . | . . . . Follow-up Attacks . | . . . . Damage Inflicted 1457 | . 407 476 574 Guns 565 | . 407 41 117 Cannons 19 | . . 19 . Explosions 164 | . . 164 . Melee 709 | . . 252 457 Ramming . | . . . . Kinetic 565 | . 407 41 117 Thermal . | . . . . Explosive 164 | . . 164 . Electromagnetic 19 | . . 19 . Impact . | . . . . Slashing 709 | . . 252 457 Piercing . | . . . . Highest Corruption . | . . . . Average Corruption . | . . . . Corruption Purged . | . . . . Corruption Blocked . | . . . . Overload Shots . | . . . . Overflow Damage . | . . . . Projectiles . | . . . . Explosions . | . . . . Melee . | . . . . Knockbacks . | . . . . Impact . | . . . . Kinetic . | . . . . Secondary . | . . . . Self-Inflicted Damage 22 | . . 22 . Shots 1 | . . 1 . Rammed . | . . . . Targets Rammed . | . . . . Kicked . | . . . . Crushed . | . . . . Highest Temperature 223 | . . 30 223 Average Temperature 56 | . . 14 116 Received Heat Transfer 427 | . 66 33 328 Siege Activations . | . . . . Martial Activations . | . . . . Shielding Activations . | . . . . Robots Disrupted . | . . . . Combat Hostiles . | . . . . Robots Corrupted . | . . . . Combat Hostiles . | . . . . Parts Fried . | . . . . Impact Corruptions . | . . . . Robots Melted . | . . . . Combat Hostiles . | . . . . Parts Melted . | . . . . Heat Transferred . | . . . . Parts Sabotaged . | . . . . Parts Stolen . | . . . . Parts Stripped . | . . . . Power Chain Reactions . | . . . . Alert | -11 -10 -10 -10 ------- Run | Yrd Mat Min Sub Maximum Alert Level . | . . . . Low Security (%) 100 | 100 100 100 . Level 1 . | . . . . Level 2 . | . . . . Level 3 . | . . . . Level 4 . | . . . . Level 5 . | . . . . High Security . | . . . . Max Security . | . . . . Peak Influence 121 | . 72 121 . Initial 7 | . . 7 . Average 38 | . 35 45 . Influence Increases 451 | . 240 211 . Destroy 0b10 Robot/C 280 | . 140 140 . Destroy 0b10 Robot/NC 40 | . 25 15 . Destroy Leader 40 | . 20 20 . Allied During Kill 6 | . . 6 . Successful Hack 8 | . 8 . . Destroy Structure 32 | . 2 30 . Partial Spotted 15 | . 15 . . Lose Combat Pursuer 30 | . 30 . . Influence Decreases 451 | . 220 231 . Entered New Map 13 | . . 13 . Time Decay 378 | . 160 218 . Purge Threat 60 | . 60 . . Squads Dispatched 1 | . 1 . . Investigation . | . . . . Extermination . | . . . . Reinforcement 1 | . 1 . . Assault . | . . . . Garrison . | . . . . Intercept . | . . . . Searches Triggered . | . . . . Construction Impeded . | . . . . Haulers Reinforced . | . . . . Active Scanning Responses . | . . . . Cargo Convoy Interrupts . | . . . . Stealth | -11 -10 -10 -10 --------- Run | Yrd Mat Min Sub Distress Signals . | . . . . Communications Jammed . | . . . . Distress Signals . | . . . . Times Spotted 32 | . 17 8 7 Peak Tracking Total 3 | . 3 3 2 Tactical Retreats 3 | . 1 1 1 Traps | -11 -10 -10 -10 ------- Run | Yrd Mat Min Sub Traps Triggered . | . . . . Indirectly . | . . . . Trap Hack Attempts . | . . . . Triggered . | . . . . Disarmed . | . . . . Reprogrammed . | . . . . Reused . | . . . . Traps Extracted . | . . . . Installed . | . . . . Triggered . | . . . . Machines | -11 -10 -10 -10 ---------- Run | Yrd Mat Min Sub Machines Disabled . | . . . . Max in Single Turn . | . . . . Machines Repaired . | . . . . Machines Dismantled . | . . . . Machines Sabotaged . | . . . . Overloaded Fab Kills . | . . . . Hacking | -11 -10 -10 -10 --------- Run | Yrd Mat Min Sub Machines Accessed 2 | . 2 . . Terminals 2 | . 2 . . Fabricators . | . . . . Repair Stations . | . . . . Recycling Units . | . . . . Scanalyzers . | . . . . Garrison Access . | . . . . Total Hacks 5 | . 5 . . Successful 2 | . 2 . . Failed 3 | . 3 . . Catastrophic 1 | . 1 . . Database Lockouts . | . . . . Manual 2 | . 2 . . Terminals 5 | . 5 . . Fabricators . | . . . . Repair Stations . | . . . . Recycling Units . | . . . . Scanalyzers . | . . . . Garrison Access . | . . . . Terminal Hacks 2 | . 2 . . Branch Access Points 1 | . 1 . . Unreport Threat 1 | . 1 . . Fabricator Hacks . | . . . . Repair Station Hacks . | . . . . Recycling Unit Hacks . | . . . . Scanalyzer . | . . . . Garrison Access Hacks . | . . . . Unauthorized Hacks . | . . . . Terminals . | . . . . Fabricators . | . . . . Repair Stations . | . . . . Recycling Units . | . . . . Scanalyzers . | . . . . Garrison Access . | . . . . Data Cores Recovered . | . . . . Used . | . . . . Hacking Detections 1 | . 1 . . Full Trace Events . | . . . . Feedback Events . | . . . . Feedback Blocked . | . . . . Robot Schematics Acquired . | . . . . Robots Built . | . . . . Authchips . | . . . . Time . | . . . . Total Robot Build Rating . | . . . . Part Schematics Acquired . | . . . . Parts Built . | . . . . Authchips . | . . . . Time . | . . . . Total Part Build Rating . | . . . . Parts Repaired . | . . . . Time . | . . . . Parts Recycled . | . . . . Recycled Matter . | . . . . Retrieved Matter . | . . . . Retrieved Components . | . . . . Parts Scanalyzed . | . . . . Part Schematics Acquired . | . . . . Parts Damaged . | . . . . Bothacking | -11 -10 -10 -10 ------------ Run | Yrd Mat Min Sub Used RIF Installer . | . . . . Robots Hacked . | . . . . Non-combat . | . . . . Combat . | . . . . Robot Hacks Applied . | . . . . Relay Couplers Released . | . . . . Fabnet Peak Effective % . | . . . . Robots Rewired . | . . . . Allies Hacked . | . . . . Hacks Repelled . | . . . . Allies | -11 -10 -10 -10 -------- Run | Yrd Mat Min Sub Total Allies 2 | . . 2 . Largest Group 2 | . . 2 2 Highest-Rated Group 39 | . . 39 39 Highest-Rated Ally 31 | . . 31 31 Total Orders . | . . . . Ally Attacks 5 | . . 3 2 Total Damage 84 | . . 42 42 Kills 2 | . . 2 . Allies Corrupted . | . . . . Allies Melted . | . . . . Intel | -11 -10 -10 -10 ------- Run | Yrd Mat Min Sub Active Infowar (turns) 1823 | . 323 625 875 ECM 1823 | . 323 625 875 Robot Analysis Total . | . . . . Derelict Logs Recovered 4 | . . 2 2 Drone Launches . | . . . . Drone Recoveries . | . . . . Exploration | -11 -10 -10 -10 ------------- Run | Yrd Mat Min Sub Turns Passed 1982 | 74 391 625 892 Spaces Moved 1334 | 45 201 455 633 Core 13 | 13 . . . Treads . | . . . . Legs 820 | 21 201 455 143 Wheels 501 | 11 . . 490 Hover . | . . . . Flight . | . . . . Fastest Speed 50 | 50 120 120 90 Average Speed 126 | 126 120 124 129 Slowest Speed 260 | 250 120 190 260 Overloaded Moves . | . . . . Propulsion Burnouts . | . . . . Robots Hopped . | . . . . Potential Cave-ins . | . . . . Cave-ins Triggered . | . . . . Exploration Rate (%) 45 | 3 53 85 42 Regions Visited 3 Branch Regions 2 Pre-discovered Areas 2 | . . . 2 Known Exits Taken 1 | . 1 . . Unknown Exits Taken 2 | 1 . 1 . Scrap Searched 1 | . . 1 . Spaces Dug . | . . . . Terrain Destroyed 50 | . . 50 . Melee . | . . . . Projectile . | . . . . AOE 50 | . . 50 . Terrain Rammed . | . . . . Walls Destroyed . | . . . . Machines Disabled . | . . . . Actions | -11 -10 -10 -10 --------- Run | Yrd Mat Min Sub Total 1523 | 58 298 493 674 Wait 64 | . 47 8 9 Move 1331 | 44 200 454 633 Hop . | . . . . Pick Up 20 | 6 10 1 3 Fast Attach 9 | 6 2 . 1 Attach 3 | . . . 3 Detach . | . . . . Swap 14 | 2 1 10 1 Drop 15 | . 9 6 . Fire 50 | . 29 9 12 Melee 17 | . . 5 12 Ram . | . . . . Kick . | . . . . Crush . | . . . . Escape Stasis . | . . . . Rewire . | . . . . Trap . | . . . . Miscellaneous . | . . . . Route ------- -11/Scrapyard -10/Materials (discovered 2 exits: [*Mat] / *Min) -10/Mines (discovered 3 exits: [*Mat x2] / [*Sub]) -10/Subcaves History --------- Turn | Location | Event 40 | -11/Scrapyard | Discovered new exit (range 15) 75 | -11/Scrapyard | Entered Materials 316 | -10/Materials | Build established: Mutant 352 | -10/Materials | Discovered new exit (range 15) 370 | -10/Materials | Identified exit to Mines 466 | -10/Materials | Entered Mines 537 | -10/Mines | A weapon hastily lodged in a ceiling crevice suddenly fell to the ground 642 | -10/Mines | Discovered new exit (range 10) 766 | -10/Mines | Discovered new exit (range 13) 844 | -10/Mines | Learned Materials emergency access door positions 1027 | -10/Mines | Discovered new exit (range 14) 1091 | -10/Mines | Entered Subcaves 1091 | -10/Subcaves | Accompanied by 2 allies 1096 | -10/Subcaves | Led the pair of lost Derelicts to an unsafe place 1336 | -10/Subcaves | Shifting Twisted Machinery released Piercing Trap 1337 | -10/Subcaves | Learned location of Mines (-10) 1674 | -10/Subcaves | Learned location of Mines (-8) 1709 | -10/Subcaves | Core integrity fell below 50% 1721 | -10/Subcaves | Core integrity fell below 20% 1758 | -10/Subcaves | Lost 3 parts (1p2n) 1934 | -10/Subcaves | Shifting Twisted Machinery released Battle Cannon 1955 | -10/Subcaves | Shifting Twisted Machinery released Sub. Laser 1981 | -10/Subcaves | A Subdweller sparked back to life 1981 | -10/Subcaves | A Subdweller sparked back to life 1983 | -10/Subcaves | Destroyed by MA-14B(R) with Subdweller Beam Cannon Last Messages --------------- Shield. Arm. Wheel destroyed. Acquired 10 matter. LR-CLV(R) affixes Scrap Shield Fragment to Scrap Shield. LR-CLV(R) destroyed. Acquired Lgt. Ion Engine. Acquired Sub. Power Source. Acquired Sub. Monowheel. Acquired 10 matter. Battle Cannon falls loose from the Twisted Machinery. Sub. Laser falls loose from the Twisted Machinery. Sneak attack on O4-M1K(R). O4-M1K(R) destroyed. 5G-1LE(R) creaks and sparks as it begins to move. MA-14B(R) creaks and sparks as it begins to move. Map ----- +----------------------------------------------------+ | ?????????????????????????????????????????????????? | | ?????????????????????????????????????????????????? | | ?????????????????????????????????????????????????? | | ?????????????????????????????????????????????????? | | ?????????????????????????????????????????????????? | | ?????????????????????????????????????????????????? | | ?????????????????????????????????????????????????? | | ?????????????????????????????????????????????????? | | ?????????????????????????????????????????????????? | | ?????????????????????????????????????????????????? | | ?????????????????????????????????????????????????? | | ?????????????????????????????????????????????????? | | ?????????????????????????????????????????????????? | | ?????????????????????????????????????????????????? | | ?????????????????????????????????????????????????? | | ?????????????????????????????????????????????????? | | ?????????????????????????????????????????????????? | | ?????????????????????????????????????????????????? | | #????????????????????????????????????????????????? | | #????????????????????????????????????????????????? | | "????????????????????????????????????????????????? | | ????????????????????????????????????????????????? | | ????????????????????????????????????????????????? | | ??????????????????????#<#<##?###????????????????? | | ??????????????????????#